fUST/lending_fUST_20251120
["ID","MTS","AMOUNT","RATE_DAILY","PERIOD"]
[394489521,1763622165824,216.1400778,7.339e-05,2]
[394489535,1763622224920,10000.0,7.607e-05,2]
[394489537,1763622248269,0.01,7.607e-05,2]
[394489538,1763622248292,9999.99,7.607e-05,2]
[394489541,1763622263534,0.02,7.607e-05,2]
[394489542,1763622263562,9999.98,7.607e-05,2]
[394489547,1763622276103,245.0,8.262e-05,10]
[394489548,1763622277499,1001.011899,0.0003992,30]
[394489549,1763622300123,0.03,7.607e-05,2]
[394489550,1763622300147,9999.97,7.607e-05,2]
[394489552,1763622318734,0.04,7.607e-05,2]
[394489553,1763622318758,9999.96,7.607e-05,2]
[394489563,1763622539901,605.79762975,0.00032877,120]
[394489597,1763622632386,-196.59631342,7.856e-05,2]
[394489600,1763622632395,-4408.04920252,7.935e-05,2]
[394489602,1763622632405,-179.506,8.116e-05,2]
[394489604,1763622632414,-300.0,8.16e-05,2]
[394489606,1763622632423,-926.0,8.16e-05,2]
[394489608,1763622632432,-500.0,8.161e-05,2]
[394489610,1763622632443,-500.0,8.161e-05,2]
[394489611,1763622632452,-500.0,8.161e-05,2]
[394489614,1763622632461,-500.0,8.161e-05,2]
[394489615,1763622632471,-500.0,8.161e-05,2]
[394489616,1763622632480,-500.0,8.161e-05,2]
[394489617,1763622632489,-500.0,8.161e-05,2]
[394489618,1763622632498,-500.0,8.161e-05,2]
[394489619,1763622632507,-500.0,8.161e-05,2]
[394489620,1763622632516,-500.0,8.161e-05,2]
[394489622,1763622632525,-500.0,8.161e-05,2]
[394489623,1763622632534,-500.0,8.161e-05,2]
[394489624,1763622632543,-500.0,8.161e-05,2]
[394489625,1763622632552,-500.0,8.161e-05,2]
[394489626,1763622632561,-500.0,8.161e-05,2]
[394489627,1763622632570,-500.0,8.161e-05,2]
[394489628,1763622632579,-500.0,8.161e-05,2]
[394489629,1763622632587,-500.0,8.161e-05,2]
[394489630,1763622632597,-500.0,8.161e-05,2]
[394489631,1763622632606,-500.0,8.161e-05,2]
[394489632,1763622632615,-500.0,8.161e-05,2]
[394489634,1763622632624,-500.0,8.161e-05,2]
[394489636,1763622632633,-500.0,8.161e-05,2]
[394489637,1763622632642,-500.0,8.161e-05,2]
[394489639,1763622632651,-500.0,8.161e-05,2]
[394489641,1763622632661,-500.0,8.161e-05,2]
[394489643,1763622632673,-154.97761393,8.161e-05,2]
[394489646,1763622632682,-375.08858412,8.161e-05,2]
[394489648,1763622632692,-500.0,8.161e-05,2]
[394489649,1763622632701,-390.11380839,8.161e-05,2]
[394489651,1763622632711,-1200.0,8.161e-05,2]
[394489653,1763622632721,-500.0,8.163e-05,2]
[394489655,1763622632731,-502.64282864,8.163e-05,2]
[394489657,1763622632740,-500.0,8.163e-05,2]
[394489659,1763622632751,-500.0,8.163e-05,2]
[394489660,1763622632761,-501.35511586,8.163e-05,2]
[394489661,1763622632769,-500.0,8.163e-05,2]
[394489662,1763622632778,-500.0,8.163e-05,2]
[394489663,1763622632787,-419.15884044,8.163e-05,2]
[394489664,1763622632797,-502.0215163,8.163e-05,2]
[394489665,1763622632807,-500.0,8.163e-05,2]
[394489666,1763622632816,-500.0,8.163e-05,2]
[394489667,1763622632825,-500.0,8.163e-05,2]
[394489668,1763622632834,-500.0,8.163e-05,2]
[394489669,1763622632843,-500.0,8.163e-05,2]
[394489670,1763622632852,-503.10817258,8.163e-05,2]
[394489671,1763622632861,-500.0,8.163e-05,2]
[394489672,1763622632871,-383.16292407,8.163e-05,2]
[394489673,1763622632879,-500.0,8.163e-05,2]
[394489674,1763622632889,-500.0,8.163e-05,2]
[394489675,1763622632898,-500.0,8.163e-05,2]
[394489676,1763622632907,-500.0,8.163e-05,2]
[394489677,1763622632916,-500.0,8.163e-05,2]
[394489678,1763622632925,-500.0,8.163e-05,2]
[394489679,1763622632934,-500.0,8.163e-05,2]
[394489680,1763622632944,-500.0,8.163e-05,2]
[394489681,1763622632953,-170.78746935,8.163e-05,2]
[394489682,1763622632962,-231.3944405,8.163e-05,2]
[394489683,1763622632974,-500.0,8.163e-05,2]
[394489684,1763622632983,-500.0,8.163e-05,2]
[394489685,1763622632992,-1000.0,8.176e-05,2]
[394489686,1763622633001,-1000.0,8.176e-05,2]
[394489687,1763622633010,-375.99652515,8.176e-05,2]
[394489688,1763622633019,-18111.450678,8.181e-05,2]
[394489689,1763622633031,-1658.69681462,8.181e-05,2]
[394489690,1763622633582,352.0,0.00032877,120]
[394489876,1763622640625,-260.01246163,8.181e-05,2]
[394489877,1763622640636,-350.0842972,8.181e-05,2]
[394489878,1763622641974,-4e-08,8.181e-05,2]
[394489895,1763622686337,151.0,0.00039919,120]
[394489896,1763622686995,151.0,0.00039919,120]
[394489897,1763622692734,151.0,0.00039919,120]
[394489898,1763622693086,151.0,0.00039919,120]
[394489899,1763622693378,151.0,0.00039919,120]
[394489900,1763622693844,151.0,0.00039919,120]
[394489901,1763622694072,162.169979,0.00039919,120]
[394489903,1763622731699,264.783581,0.00014,3]
[394489905,1763622752122,306.252303,0.00014,3]
[394489906,1763622807159,159.589775,0.00039919,120]
[394489907,1763622846313,219.80428492,0.00039934,30]
[394489924,1763623113953,515802.18771218,0.00039934,20]
[394489929,1763623268633,996.43,0.00015024,30]
[394489930,1763623269050,1992.85,0.0001574,30]
[394489931,1763623269453,2989.28,0.00016455,30]
[394489932,1763623269894,3985.7,0.00017171,30]
[394489933,1763623270285,4982.13,0.00017886,30]
[394489934,1763623329846,201.235521,0.00014,3]
[394489936,1763623349612,232.75175,0.00014,3]
[394489937,1763623422464,914.9,0.00015377,30]
[394489938,1763623422912,1829.8,0.00016109,30]
[394489939,1763623423355,2744.7,0.00016842,30]
[394489940,1763623423774,3659.6,0.00017574,30]
[394489941,1763623544134,344.490861,0.00030137,120]
[394489962,1763623723124,20023.23453168,0.00039933,30]
[394489966,1763623803967,2000.0,0.00013699,7]
[394490005,1763623831708,-175.83,7.919e-05,2]
[394490008,1763623831718,-219.27372919,7.953e-05,2]
[394490009,1763623831727,-501.25007788,8.063e-05,2]
[394490010,1763623831737,-195.23531546,8.063e-05,2]
[394490012,1763623831748,-362.16639541,8.063e-05,2]
[394490014,1763623831757,-500.0,8.063e-05,2]
[394490016,1763623831766,-300.0,8.079e-05,2]
[394490017,1763623831775,-500.0,8.08e-05,2]
[394490018,1763623831784,-500.0,8.08e-05,2]
[394490019,1763623831795,-500.0,8.08e-05,2]
[394490020,1763623831804,-185.99129234,8.08e-05,2]
[394490021,1763623831813,-500.0,8.08e-05,2]
[394490022,1763623831822,-293.46847067,8.08e-05,2]
[394490023,1763623831832,-232.45539388,8.081e-05,2]
[394490221,1763623846112,-6820.55999992,8.081e-05,2]
[394490222,1763623846206,-71461.94006182,8.081e-05,2]
[394490225,1763623875490,165.862454,7.272e-05,2]
[394490226,1763623875939,165.862454,7.272e-05,120]
[394490227,1763623926449,241.482626,0.00014,3]
[394490228,1763623947669,279.3021,0.00014,3]
[394490229,1763624007979,151.0,0.00039933,120]
[394490230,1763624008282,151.0,0.00039933,120]
[394490235,1763624110780,151.0,0.00039916,120]
[394490236,1763624111404,151.0,0.00039916,120]
[394490237,1763624112068,151.0,0.00039916,120]
[394490238,1763624112709,151.0,0.00039916,120]
[394490239,1763624113334,151.0,0.00039916,120]
[394490240,1763624114007,151.0,0.00039916,120]
[394490241,1763624114870,151.0,0.00039916,120]
[394490242,1763624115498,151.0,0.00039916,120]
[394490243,1763624116117,151.0,0.00039916,120]
[394490244,1763624116738,151.0,0.00039916,120]
[394490245,1763624117373,151.0,0.00039916,120]
[394490246,1763624118069,151.0,0.00039916,120]
[394490247,1763624118629,151.0,0.00039916,120]
[394490248,1763624119306,151.0,0.00039916,120]
[394490249,1763624119955,151.0,0.00039916,120]
[394490250,1763624120582,151.0,0.00039916,120]
[394490251,1763624121323,151.0,0.00039916,120]
[394490252,1763624121807,151.0,0.00039916,120]
[394490253,1763624122458,151.0,0.00039916,120]
[394490254,1763624126895,151.0,0.00039916,120]
[394490255,1763624127266,151.0,0.00039916,120]
[394490256,1763624193506,304.05,0.00039916,20]
[394490267,1763624380476,380.0,0.00032877,120]
[394490270,1763624410553,45125.584271,0.00039931,20]
[394490275,1763624486771,151.0,0.00039931,120]
[394490276,1763624487124,151.0,0.00039931,120]
[394490277,1763624487432,151.0,0.00039931,120]
[394490278,1763624487730,161.349111,0.00039931,120]
[394490279,1763624551177,183.526795,0.00014,3]
[394490280,1763624554057,225.591562,0.00039931,120]
[394490281,1763624554377,225.591562,0.00039931,120]
[394490282,1763624554682,225.591562,0.00039931,120]
[394490283,1763624555540,225.591562,0.00039931,120]
[394490284,1763624555830,225.591562,0.00039931,120]
[394490285,1763624556129,225.591562,0.00039931,120]
[394490286,1763624556440,225.591562,0.00039931,120]
[394490287,1763624557194,225.591562,0.00039931,120]
[394490288,1763624557569,225.591562,0.00039931,120]
[394490289,1763624557862,225.591562,0.00039931,120]
[394490290,1763624558222,225.591562,0.00039931,120]
[394490291,1763624558516,225.591562,0.00039931,120]
[394490292,1763624558826,225.591562,0.00039931,120]
[394490293,1763624559173,225.591562,0.00039931,120]
[394490294,1763624559476,225.591562,0.00039931,120]
[394490295,1763624559820,225.591562,0.00039931,120]
[394490296,1763624560121,225.591562,0.00039931,120]
[394490297,1763624560600,225.591562,0.00039931,120]
[394490298,1763624560966,225.591562,0.00039931,120]
[394490299,1763624561265,225.59157,0.00039931,120]
[394490300,1763624563106,212.269596,0.00014,3]
[394490319,1763624679697,-175.83,7.821e-05,2]
[394490320,1763624679719,-87.01605649,7.95e-05,2]
[394490321,1763624681987,-127.87219812,7.95e-05,2]
[394490322,1763624682013,-279.28656481,7.98e-05,2]
[394490323,1763624684160,-137.71343519,7.98e-05,2]
[394490324,1763624684181,-20.92001491,7.98e-05,2]
[394490325,1763624686445,-279.07998509,7.98e-05,2]
[394490326,1763624686470,-50.93973062,7.981e-05,2]
[394490327,1763624688973,-166.66,7.981e-05,2]
[394490328,1763624691841,-296.0126158,7.981e-05,2]
[394490329,1763624695529,-347.11585858,7.981e-05,2]
[394490330,1763624697630,-442.63304383,7.981e-05,2]
[394490331,1763624699443,-163.23350607,7.981e-05,2]
[394490332,1763624702315,-211.00776499,7.98e-05,2]
[394490333,1763624704118,-288.99223501,7.98e-05,2]
[394490334,1763624706905,-11.00776499,7.98e-05,2]
[394490335,1763624706937,-176.46974401,7.98e-05,2]
[394490337,1763624708934,-112.522491,7.98e-05,2]
[394490338,1763624708966,-44.28871057,7.98e-05,2]
[394490339,1763624712244,-158.62912185,7.98e-05,2]
[394490340,1763624714942,-229.46608671,7.98e-05,2]
[394490341,1763624718742,-152.15644305,7.98e-05,2]
[394490342,1763624718769,-188.48899708,7.98e-05,2]
[394490343,1763624721035,-311.51100292,7.98e-05,2]
[394490344,1763624721074,-47.84355695,7.98e-05,2]
[394490345,1763624722662,-139.63395205,7.98e-05,2]
[394490346,1763624722688,-26.47993409,7.981e-05,2]
[394490350,1763624740381,-214.41686065,7.98e-05,2]
[394490351,1763624742542,-285.58313935,7.98e-05,2]
[394490352,1763624744111,-158.62912185,7.98e-05,2]
[394490353,1763624744146,-163.53164869,7.98e-05,2]
[394490354,1763624747283,-232.81279311,7.98e-05,2]
[394490355,1763624751193,-247.29980265,7.98e-05,2]
[394490356,1763624751224,-106.636429,7.98e-05,2]
[394490357,1763624753105,-273.89431779,7.98e-05,2]
[394490358,1763624753128,-7.78588647,7.981e-05,2]
[394490359,1763624756314,-249.6180613,7.7e-05,2]
[394490360,1763624759114,-187.27238555,7.7e-05,2]
[394490361,1763624759143,-91.13816987,7.98e-05,2]
[394490362,1763624763329,-226.99780248,7.98e-05,2]
[394490363,1763624765380,-73.00219752,7.98e-05,2]
[394490364,1763624765420,-104.83703194,7.98e-05,2]
[394490365,1763624767010,-163.46915366,7.98e-05,2]
[394490366,1763624771487,-140.55564453,7.98e-05,2]
[394490367,1763624771521,-167.157415,7.98e-05,2]
[394490368,1763624775374,-173.399288,7.98e-05,2]
[394490369,1763624775398,-195.20848419,7.981e-05,2]
[394490370,1763624776938,-11.60602747,7.981e-05,2]
[394490371,1763624776968,-307.6474288,7.981e-05,2]
[394490372,1763624778896,-180.74654373,7.981e-05,2]
[394490373,1763624780317,-227.90980618,7.981e-05,2]
[394490374,1763624782947,-346.2347783,7.981e-05,2]
[394490375,1763624785905,-180.24560737,7.981e-05,2]
[394490376,1763624788071,-202.6831708,7.981e-05,2]
[394490377,1763624790587,-186.11522603,7.98e-05,2]
[394490378,1763624793878,-254.88631647,7.98e-05,2]
[394490379,1763624796115,-58.9984575,7.98e-05,2]
[394490380,1763624796147,-137.46797499,7.98e-05,2]
[394490381,1763624799564,-319.19927494,7.98e-05,2]
[394490382,1763624801147,-43.33275007,7.98e-05,2]
[394490383,1763624801186,-122.97742237,7.98e-05,2]
[394490384,1763624803499,-231.00954211,7.98e-05,2]
[394490385,1763624805304,-272.9109035,7.98e-05,2]
[394490386,1763624805333,-95.49074017,7.98e-05,2]
[394490387,1763624807654,-404.50925983,7.98e-05,2]
[394490388,1763624807684,-25.45400976,7.98e-05,2]
[394490389,1763624809651,-282.26118919,7.98e-05,2]
[394490390,1763624812488,-152.62353377,7.98e-05,2]
[394490391,1763624815832,-39.66126728,7.98e-05,2]
[394490392,1763624815862,-151.64839056,7.98e-05,2]
[394490393,1763624819223,-292.65665189,7.98e-05,2]
[394490394,1763624829818,-260.35512565,7.98e-05,2]
[394490395,1763624831541,-219.00120641,7.9e-05,2]
[394490397,1763624836019,-73.65544548,7.9e-05,2]
[394490398,1763624836043,-39.64487435,7.98e-05,2]
[394490399,1763624836076,-55.69495755,7.98e-05,2]
[394490400,1763624836108,-157.76469216,7.98e-05,2]
[394490401,1763624838808,-281.00021653,7.98e-05,2]
[394490402,1763624840491,-61.23509131,7.98e-05,2]
[394490403,1763624840529,-145.8017442,7.98e-05,2]
[394490405,1763624842709,-279.75516385,7.98e-05,2]
[394490406,1763624859615,-287.96468807,7.9e-05,2]
[394490407,1763624862881,-184.24335779,7.9e-05,2]
[394490408,1763624864991,-206.27026912,7.9e-05,2]
[394490409,1763624866608,-200.0,7.9e-05,2]
[394490410,1763624869343,-300.0,7.9e-05,2]
[394490411,1763624871693,-203.70878157,7.9e-05,2]
[394490412,1763624874525,-173.32744706,7.9e-05,2]
[394490413,1763624876343,-18.39397388,7.9e-05,2]
[394490414,1763624876377,-74.44309195,7.98e-05,2]
[394490415,1763624876407,-128.66163074,7.98e-05,2]
[394490416,1763624880411,-66.48747908,7.98e-05,2]
[394490417,1763624880454,-120.11874173,7.98e-05,2]
[394490418,1763624882982,-302.55390884,7.9e-05,2]
[394490419,1763624886379,-92.27223479,7.9e-05,2]
[394490420,1763624886403,-125.30937481,7.98e-05,2]
[394490421,1763624889177,-153.69344454,7.7e-05,2]
[394490422,1763624893379,-194.47980349,7.7e-05,2]
[394490424,1763624904576,-90.50980274,7.7e-05,2]
[394490425,1763624904599,-174.69062519,7.98e-05,2]
[394490426,1763624904628,-42.01988921,7.98e-05,2]
[394490427,1763624906774,-261.89247249,7.98e-05,2]
[394490428,1763624919692,-156.3324219,7.9e-05,2]
[394490429,1763624922617,-196.80406309,7.821e-05,2]
[394490430,1763624926585,-234.29034291,7.821e-05,2]
[394490431,1763624929323,-63.38539749,7.821e-05,2]
[394490432,1763624929345,-224.23274234,7.9e-05,2]
[394490433,1763624934615,-113.91463925,7.9e-05,2]
[394490434,1763624934643,-75.96889657,7.98e-05,2]
[394490435,1763624934672,-17.61566688,7.98e-05,2]
[394490436,1763624936717,-325.2359473,7.98e-05,2]
[394490437,1763624949601,-274.54577413,7.9e-05,2]
[394490438,1763624951701,-3.18246824,7.9e-05,2]
[394490439,1763624951722,-175.38476939,7.98e-05,2]
[394490440,1763624955193,-124.61523061,7.98e-05,2]
[394490441,1763624955221,-157.14838582,7.98e-05,2]
[394490442,1763624955249,-84.36605315,7.98e-05,2]
[394490443,1763624965236,-332.96510632,7.98e-05,2]
[394490444,1763624965260,-9.64937331,7.98e-05,2]
[394490446,1763624979674,-183.716,7.9e-05,2]
[394490447,1763624982213,-292.77968286,7.9e-05,2]
[394490448,1763624983816,-169.68961702,7.9e-05,2]
[394490449,1763625003602,3000.0,0.00039931,120]
[394490450,1763625009632,-169.68961702,7.821e-05,2]
[394490451,1763625009655,-109.74910057,7.9e-05,2]
[394490452,1763625012252,-104.50078334,7.9e-05,2]
[394490453,1763625012280,-113.60050408,7.963e-05,2]
[394490454,1763625024588,-406.33555751,7.883e-05,2]
[394490491,1763625031921,-70.16012535,7.883e-05,2]
[394490493,1763625031931,-386.39949592,7.963e-05,2]
[394490495,1763625031940,-500.0,7.963e-05,2]
[394490497,1763625031950,-95.21888345,7.963e-05,2]
[394490504,1763625037812,-404.78111655,7.963e-05,2]
[394490505,1763625037822,-117.40888345,7.979e-05,2]
[394490507,1763625037963,-182.59111655,7.979e-05,2]
[394490508,1763625037973,-300.0,7.979e-05,2]
[394490509,1763625037983,-300.0,7.979e-05,2]
[394490510,1763625037993,-300.0,7.979e-05,2]
[394490511,1763625038003,-500.0,7.98e-05,2]
[394490512,1763625038013,-500.0,7.98e-05,2]
[394490513,1763625038022,-500.0,7.98e-05,2]
[394490514,1763625038031,-522.05614292,7.98e-05,2]
[394490515,1763625038041,-500.0,7.98e-05,2]
[394490516,1763625038050,-261408.54394687,7.981e-05,2]
[394490517,1763625038062,-1143.24370011,7.981e-05,2]
[394490518,1763625039586,-399.86635552,7.981e-05,2]
[394490527,1763625041165,-1000.0,7.981e-05,2]
[394490528,1763625041182,-450.99967484,7.981e-05,2]
[394490533,1763625043190,-373.64824318,7.981e-05,2]
[394490552,1763625045236,-25774.46808766,7.981e-05,2]
[394490553,1763625045247,-9925.27322873,7.981e-05,2]
[394490576,1763625046282,-59123.92612809,7.981e-05,2]
[394490577,1763625046294,-48043.32588925,7.981e-05,2]
[394490578,1763625046640,-176.59541754,7.981e-05,2]
[394490579,1763625050099,-175.94023153,7.981e-05,2]
[394490580,1763625052885,-322.74031337,7.816e-05,2]
[394490581,1763625052907,-59.15839921,7.901e-05,2]
[394490582,1763625069684,-220.28031838,7.822e-05,2]
[394490583,1763625069706,-48.09440278,7.901e-05,2]
[394490584,1763625071849,-213.51372703,7.862e-05,2]
[394490585,1763625071872,-86.48627297,7.901e-05,2]
[394490587,1763625100138,-85.69964263,7.901e-05,2]
[394490588,1763625100162,-222.45726927,7.963e-05,2]
[394490589,1763625103079,-166.51112162,7.963e-05,2]
[394490590,1763625107210,-236.9445648,7.883e-05,2]
[394490591,1763625111723,-142.77511682,7.883e-05,2]
[394490592,1763625111746,-74.84683982,7.963e-05,2]
[394490593,1763625113290,-36.18476929,7.963e-05,2]
[394490594,1763625113313,-183.31994176,7.963e-05,2]
[394490595,1763625117439,-269.56677906,7.963e-05,2]
[394490596,1763625120240,-47.90354659,7.963e-05,2]
[394490597,1763625120263,-135.81245341,7.963e-05,2]
[394490598,1763625126445,229.284582,0.00014,3]
[394490599,1763625130123,-256.90292386,7.963e-05,2]
[394490600,1763625130146,-16.17160857,7.963e-05,2]
[394490602,1763625132546,-300.0,7.963e-05,2]
[394490603,1763625136643,-158.90364742,7.963e-05,2]
[394490604,1763625138351,-24.92474401,7.963e-05,2]
[394490605,1763625138374,-300.0,7.979e-05,2]
[394490606,1763625138399,-48.72349917,7.98e-05,2]
[394490607,1763625141189,-222.36247065,7.98e-05,2]
[394490608,1763625143894,-170.35032243,7.98e-05,2]
[394490609,1763625143920,-36.73334593,7.98e-05,2]
[394490610,1763625145419,254.723516,0.00014,3]
[394490611,1763625147200,-240.7251308,7.98e-05,2]
[394490612,1763625147230,-226.29745523,7.98e-05,2]
[394490613,1763625148798,-247.6827799,7.98e-05,2]
[394490614,1763625159591,-26.01976487,7.98e-05,2]
[394490615,1763625159622,-152.93266187,7.98e-05,2]
[394490619,1763625161710,-255.24594557,7.98e-05,2]
[394490621,1763625164555,-91.82139256,7.98e-05,2]
[394490622,1763625164586,-61.60346895,7.98e-05,2]
[394490623,1763625166754,-134.64123826,7.98e-05,2]
[394490624,1763625166777,-117.41541129,7.98e-05,2]
[394490626,1763625170097,-104.94705936,7.98e-05,2]
[394490627,1763625170121,-48.56601697,7.98e-05,2]
[394490629,1763625173783,-173.79645368,7.98e-05,2]
[394490630,1763625173809,-65.52155408,7.981e-05,2]
[394490631,1763625175827,-356.32697641,7.981e-05,2]
[394490634,1763625189591,-161.86242273,7.98e-05,2]
[394490635,1763625192443,-138.13757727,7.98e-05,2]
[394490636,1763625192469,-133.35551141,7.981e-05,2]
[394490637,1763625194489,-324.11002486,7.981e-05,2]
[394490638,1763625197998,-184.14610089,7.981e-05,2]
[394490640,1763625204599,-152.46570568,7.981e-05,2]
[394490643,1763625206874,-200.35378418,7.98e-05,2]
[394490644,1763625210051,-181.99911745,7.98e-05,2]
[394490645,1763625210076,-19.05474646,7.981e-05,2]
[394490646,1763625213319,-174.4191205,7.954e-05,2]
[394490647,1763625213345,-24.99796463,7.981e-05,2]
[394490648,1763625214920,-303.52568229,7.98e-05,2]
[394490649,1763625218862,-49.9938873,7.98e-05,2]
[394490650,1763625218886,-244.71427823,7.981e-05,2]
[394490651,1763625221277,-205.29183447,7.981e-05,2]
[394490652,1763625222825,-177.89781857,7.98e-05,2]
[394490653,1763625225580,-22.45596561,7.98e-05,2]
[394490654,1763625225606,-146.76097211,7.981e-05,2]
[394490655,1763625227313,-172.18155402,7.981e-05,2]
[394490656,1763625227768,440.0,0.00032877,120]
[394490657,1763625231252,-451.42191563,7.98e-05,2]
[394490660,1763625236721,-48.57808437,7.98e-05,2]
[394490661,1763625236750,-142.55994788,7.98e-05,2]
[394490664,1763625250150,-271.94114954,7.98e-05,2]
[394490665,1763625251922,-28.05885046,7.98e-05,2]
[394490666,1763625251950,-129.23941046,7.98e-05,2]
[394490667,1763625256054,-228.20064166,7.98e-05,2]
[394490668,1763625256085,-23.5108752,7.98e-05,2]
[394490669,1763625259328,-251.46175124,7.98e-05,2]
[394490670,1763625262251,-47.84936616,7.98e-05,2]
[394490671,1763625262285,-294.85237292,7.98e-05,2]
[394490672,1763625265734,-156.0,7.98e-05,2]
[394490673,1763625269568,-49.14762708,7.98e-05,2]
[394490674,1763625269598,-232.76515431,7.98e-05,2]
[394490678,1763625274605,-218.65676132,7.98e-05,2]
[394490679,1763625274632,-95.32594872,7.98e-05,2]
[394490681,1763625279476,-292.47996829,7.881e-05,2]
[394490684,1763625282334,-340.99022222,7.881e-05,2]
[394490685,1763625285132,-250.0,7.881e-05,2]
[394490686,1763625287388,-256.13285679,7.881e-05,2]
[394490687,1763625289123,-164.1366343,7.881e-05,2]
[394490688,1763625291631,-243.86714321,7.881e-05,2]
[394490689,1763625293247,-244.9244105,7.881e-05,2]
[394490690,1763625295386,-282.85205043,7.881e-05,2]
[394490691,1763625298836,-154.27065115,7.881e-05,2]
[394490692,1763625309615,-187.1797317,7.88e-05,2]
[394490693,1763625311755,-112.8202683,7.88e-05,2]
[394490694,1763625311778,-220.2713657,7.88e-05,2]
[394490695,1763625315487,-79.7286343,7.88e-05,2]
[394490696,1763625315510,-266.00071455,7.88e-05,2]
[394490697,1763625320030,-33.99928545,7.88e-05,2]
[394490698,1763625320058,-314.54089197,7.881e-05,2]
[394490699,1763625321158,279.0,0.00032014,120]
[394490700,1763625324663,-359.87470699,7.881e-05,2]
[394490701,1763625326933,-151.45982258,7.881e-05,2]
[394490702,1763625329017,-318.05687493,7.881e-05,2]
[394490703,1763625339666,-331.63594829,7.881e-05,2]
[394490704,1763625342575,-178.53406059,7.881e-05,2]
[394490705,1763625344590,-204.57858822,7.881e-05,2]
[394490706,1763625347932,-198.13254831,7.881e-05,2]
[394490707,1763625350674,-216.03048336,7.881e-05,2]
[394490708,1763625353573,-283.96951664,7.881e-05,2]
[394490709,1763625355906,164.0,0.000328,120]
[394490710,1763625356064,-269.06197966,7.881e-05,2]
[394490711,1763625357335,164.0,0.000328,120]
[394490712,1763625363463,164.0,0.000328,120]
[394490713,1763625363934,164.0,0.000328,120]
[394490714,1763625367778,164.0,0.000328,120]
[394490715,1763625368277,164.0,0.000328,120]
[394490716,1763625370854,-230.93802034,7.88e-05,2]
[394490717,1763625373094,164.0,0.000328,120]
[394490718,1763625375077,-69.06197966,7.88e-05,2]
[394490719,1763625375105,-355.22094407,7.881e-05,2]
[394490720,1763625377472,-169.46776571,7.881e-05,2]
[394490721,1763625380711,-213.80379844,7.881e-05,2]
[394490722,1763625382339,-471.24644141,7.881e-05,2]
[394490723,1763625387403,163.0,0.000328,120]
[394490724,1763625389746,-194.0172991,7.881e-05,2]
[394490725,1763625399821,164.23681149,0.000328,120]
[394490726,1763625414612,-230.50237124,7.881e-05,2]
[394490727,1763625416906,-162.98942841,7.881e-05,2]
[394490729,1763625419623,-228.82068515,7.881e-05,2]
[394490731,1763625422281,-171.85973366,7.881e-05,2]
[394490732,1763625424425,-300.0,7.88e-05,2]
[394490733,1763625424452,-188.99858215,7.881e-05,2]
[394490734,1763625426698,-406.02233567,7.881e-05,2]
[394490735,1763625431047,-203.19679978,7.881e-05,2]
[394490737,1763625434978,-280.54840872,7.881e-05,2]
[394490738,1763625436616,-209.56734536,7.881e-05,2]
[394490739,1763625438950,-233.72585195,7.881e-05,2]
[394490740,1763625442612,-251.78353984,7.88e-05,2]
[394490741,1763625445574,-248.21646016,7.88e-05,2]
[394490742,1763625445599,-62.94434457,7.88e-05,2]
[394490743,1763625448869,-180.75547521,7.88e-05,2]
[394490744,1763625451112,-256.30018022,7.88e-05,2]
[394490745,1763625451143,-11.91567248,7.88e-05,2]
[394490746,1763625453197,-231.08331663,7.88e-05,2]
[394490747,1763625455274,-257.00101089,7.88e-05,2]
[394490748,1763625455299,-101.19554172,7.88e-05,2]
[394490749,1763625457851,-300.00826151,7.88e-05,2]
[394490750,1763625461563,-98.79619677,7.88e-05,2]
[394490751,1763625461588,-70.66179722,7.88e-05,2]
[394490752,1763625464922,-176.01466442,7.88e-05,2]
[394490753,1763625467854,-253.32353836,7.88e-05,2]
[394490754,1763625467879,-7.7844988,7.88e-05,2]
[394490755,1763625471575,-204.25369422,7.88e-05,2]
[394490756,1763625475443,-193.44523145,7.88e-05,2]
[394490757,1763625475470,-30.11480226,7.88e-05,2]
[394490758,1763625478012,-163.30045192,7.88e-05,2]
[394490759,1763625479993,-164.08738128,7.88e-05,2]
[394490760,1763625483117,-252.36427812,7.879e-05,2]
[394490761,1763625485934,-47.63572188,7.879e-05,2]
[394490762,1763625485959,-136.69954808,7.88e-05,2]
[394490763,1763625490561,-5.79781646,7.88e-05,2]
[394490764,1763625490588,-210.32088394,7.88e-05,2]
[394490765,1763625494058,-225.60230547,7.88e-05,2]